bitfinex/quotes_ETHUSD_20260305
["timestamp","ask_amount","ask_price","bid_price","bid_amount"]
[1772723124619,1.18691544,2106.3,2105.4,0.0011]
[1772723124833,2.80522312,2106.2,2105.4,0.0011]
[1772723125351,1.18691544,2106.3,2105.1,0.0011]
[1772723125352,2.92677604,2106.0,2105.1,0.0011]
[1772723125667,2.92677604,2105.8,2105.1,0.0011]
[1772723125850,2.92677604,2105.6,2104.9,0.0011]
[1772723126050,2.80522312,2105.5,2104.9,0.0011]
[1772723126224,2.92677604,2105.6,2104.9,0.0011]
[1772723126427,2.92677604,2105.4,2103.3,4.41018631]
[1772723126751,1.18759203,2105.1,2103.4,3.05835236]
[1772723126952,1.18759203,2105.1,2103.3,4.75420747]
[1772723126953,4.15321312,2105.2,2103.6,3.05835236]
[1772723127522,1.18753811,2105.2,2103.6,3.05835236]
[1772723127734,6.03203676,2105.3,2103.8,3.05835236]
[1772723127735,2.46949634,2105.3,2103.8,3.05835236]
[1772723127936,1.18736543,2105.6,2104.0,3.05835236]
[1772723128470,3.65101584,2106.1,2103.7,1.160536]
[1772723128471,2.96567501,2106.2,2104.4,3.05835236]
[1772723128636,2.46884551,2106.5,2104.9,4.24605723]
[1772723128965,2.22701584,2107.0,2105.1,3.05835236]
[1772723128966,1.18657743,2107.0,2105.1,3.05835236]
[1772723129254,2.468487,2107.1,2105.3,0.065536]
[1772723129418,2.468487,2107.1,2105.4,3.05835236]
[1772723129623,2.468487,2107.1,2105.1,1.096]
[1772723129624,1.282,2107.1,2105.6,3.05835236]
[1772723129819,6.16437906,2107.4,2105.8,3.05835236]
[1772723129820,2.60530972,2107.4,2105.8,3.05835236]
[1772723130059,1.18630972,2107.4,2105.8,3.05835236]
[1772723130760,2.46822385,2107.6,2106.0,3.05835236]
[1772723131056,5.76558785,2107.5,2105.9,1.18714088]
[1772723131223,5.76558785,2107.4,2105.9,1.18714088]
[1772723131424,2.96567501,2107.4,2105.9,1.18714088]
[1772723131852,2.96567501,2107.4,2105.5,7.87245191]
[1772723131853,2.96567501,2107.2,2105.3,1.096]
[1772723132105,2.96567501,2107.2,2105.0,7.80834019]
[1772723132106,2.96567501,2106.9,2105.1,1.18759203]
[1772723132273,2.96567501,2106.7,2105.1,1.18759203]
[1772723132692,1.18674641,2106.6,2105.1,1.18759203]
[1772723133074,4.15242142,2106.6,2105.1,1.18759203]
[1772723133279,2.96567501,2106.4,2105.1,1.18759203]
[1772723133793,2.96567501,2106.2,2104.5,3.05835236]
[1772723133989,3.41376225,2106.6,2104.6,4.75129655]
[1772723133990,2.96567501,2106.0,2104.6,4.75129655]
[1772723134183,4.24667501,2106.0,2104.6,4.75129655]
[1772723134594,1.18714088,2105.9,2104.6,4.75129655]
[1772723134789,5.43380279,2106.0,2104.6,4.75129655]
[1772723134996,5.43380279,2106.0,2104.5,1.18787418]
[1772723135824,2.96567501,2105.8,2104.5,1.18787418]
[1772723136299,2.96567501,2105.8,2105.0,0.0011]
[1772723136686,1.18725364,2105.7,2105.0,0.0011]
[1772723138017,7.71468958,2105.8,2105.0,0.0011]
[1772723138018,1.18720711,2105.8,2105.0,0.0011]
[1772723138484,6.02978905,2106.0,2105.0,0.0011]
[1772723138485,1.281,2106.0,2105.0,0.0011]
[1772723138688,1.18719374,2105.9,2105.0,0.0011]
[1772723138994,2.96567501,2105.8,2105.0,0.0011]
[1772723139916,2.96567501,2105.6,2105.0,0.0011]
[1772723140713,4.15304143,2105.5,2105.0,0.0011]
[1772723140911,4.15304143,2105.5,2104.8,0.0011]
[1772723141290,2.96567501,2105.4,2103.8,1.18832588]
[1772723141493,1.283,2105.3,2103.8,1.18832588]
[1772723141689,1.283,2105.3,2103.8,4.24667824]
[1772723141888,2.96567501,2105.4,2103.8,4.24667824]
[1772723142105,1.283,2105.3,2103.8,4.24667824]
[1772723142716,2.47027801,2105.7,2104.1,3.05835236]
[1772723142903,2.47027801,2105.7,2104.2,3.05835236]
[1772723143316,5.43595302,2105.7,2104.2,3.05835236]
[1772723143681,5.43595302,2105.7,2104.1,2.49560617]
[1772723143682,2.96567501,2105.6,2104.1,2.49560617]
[1772723144124,2.96567501,2105.6,2104.1,5.55395853]
[1772723144341,2.96567501,2105.6,2104.2,3.05835236]
[1772723144898,2.47027801,2105.7,2104.3,1.18804352]
[1772723145099,5.43595302,2105.7,2104.3,1.18804352]
[1772723145316,2.96567501,2105.6,2104.3,1.18804352]
[1772723147219,1.18736642,2105.5,2104.2,4.75217411]
[1772723147599,4.15304143,2105.5,2104.2,4.75217411]
[1772723148320,4.15304143,2105.5,2104.5,0.0011]
[1772723148523,4.15304143,2105.5,2103.9,4.75239996]
[1772723148524,2.79336221,2105.4,2104.3,0.0011]
[1772723148738,2.96567501,2105.3,2103.1,7.81311205]
[1772723148899,2.86139242,2105.1,2104.0,0.0011]
[1772723149232,2.86139242,2104.7,2104.0,0.0011]
[1772723150221,4.04900635,2105.1,2104.0,0.0011]
[1772723150426,5.33000635,2105.1,2104.0,0.0011]
[1772723151221,5.32999216,2105.1,2104.0,0.0011]
[1772723151725,5.32998633,2105.1,2104.0,0.0011]
[1772723152095,2.86139242,2105.0,2104.0,0.0011]
[1772723152838,1.281,2105.5,2104.0,3.14698338]
[1772723153137,2.86139242,2105.8,2104.2,3.14588338]
[1772723153138,5.32961117,2105.8,2104.2,3.14588338]
[1772723153431,5.32961117,2105.8,2104.3,4.3339269]
[1772723154109,2.86139242,2105.7,2104.3,4.3339269]
[1772723154314,2.86139242,2105.7,2104.3,1.18804352]
[1772723154498,2.86139242,2105.5,2104.3,1.18804352]
[1772723155296,2.86139242,2105.5,2104.2,4.75217411]
[1772723155297,2.86139242,2105.3,2104.2,4.75217411]
[1772723156307,1.18741259,2105.5,2104.2,4.75217411]
[1772723156513,4.74877229,2106.0,2104.2,4.75217411]
[1772723156514,1.28,2105.8,2104.4,3.14588338]
[1772723156844,1.28,2105.8,2104.2,4.75217411]
[1772723156845,2.86139242,2105.8,2104.2,4.75217411]
[1772723157000,2.79526427,2105.7,2104.3,3.14588338]
[1772723157206,4.04864606,2105.7,2104.4,1.18798707]
[1772723158433,2.86139242,2105.5,2104.4,1.18798707]
[1772723159201,1.18742281,2105.4,2104.1,1.18812175]
[1772723159446,2.86139242,2105.2,2104.1,1.18812175]
[1772723159615,1.28,2105.3,2104.1,1.18812175]
[1772723159808,1.28,2105.3,2104.1,4.33400513]
[1772723160430,1.28,2105.3,2104.0,4.75372582]
[1772723160431,2.86139242,2105.1,2104.5,0.0011]
[1772723160708,1.28,2105.3,2104.0,1.18930618]
[1772723160709,2.80149269,2105.0,2104.0,1.18930618]
[1772723160939,2.86139242,2105.2,2104.3,0.0011]
[1772723161112,2.80125672,2105.1,2104.3,0.0011]
[1772723161316,2.80125672,2105.1,2104.0,0.0011]
[1772723161317,2.86139242,2104.9,2104.0,0.0011]
[1772723161628,5.66264914,2104.8,2104.0,0.0011]
[1772723161829,1.18764845,2105.0,2104.0,0.0011]
[1772723162033,2.80504878,2104.9,2104.0,0.0011]
[1772723162617,5.6664412,2104.8,2104.0,0.0011]
[1772723162818,2.80504878,2104.7,2104.0,0.0011]
[1772723163018,6.9464412,2104.7,2104.0,0.0011]
[1772723163227,2.80504878,2104.6,2104.0,0.0011]
[1772723163429,1.18793062,2104.5,2104.0,0.0011]
[1772723164034,1.18791048,2104.6,2104.0,0.0011]
[1772723164642,0.24705435,2104.6,2104.0,0.0011]
[1772723165048,1.28,2105.2,2104.0,0.0011]
[1772723165049,1.28,2105.2,2104.0,3.14698338]
[1772723165211,6.22040885,2105.5,2104.2,3.14588338]
[1772723165212,0.001,2105.5,2104.2,3.14588338]
[1772723165412,2.22701584,2106.1,2104.4,3.14588338]
[1772723165661,6.21940885,2106.3,2104.2,4.75217411]
[1772723165662,2.86139242,2105.3,2104.2,4.75217411]
[1772723165823,2.86139242,2105.2,2104.1,4.75239996]
[1772723166016,1.28,2105.4,2104.1,4.75239996]
[1772723166646,2.86139242,2105.6,2104.2,3.14588338]
[1772723167052,2.86139242,2105.6,2104.1,7.38346425]
[1772723167257,2.86139242,2105.5,2104.0,0.0011]
[1772723167458,2.86139242,2105.1,2104.0,0.0011]
[1772723167750,2.86139242,2104.9,2104.0,0.0011]
[1772723167952,5.08840826,2104.9,2104.0,0.0011]
[1772723168121,2.86139242,2104.9,2104.0,0.0011]
[1772723168644,2.86139242,2104.8,2104.0,0.0011]
[1772723168845,1.281,2104.7,2104.0,0.0011]
[1772723169226,1.18753562,2105.2,2104.0,0.0011]
[1772723169425,7.61153492,2105.3,2104.0,0.0011]
[1772723169833,2.86139242,2105.2,2104.0,0.0011]
[1772723170240,5.08840826,2105.1,2104.0,0.0011]
[1772723170545,8.10815893,2105.3,2104.0,0.0011]
[1772723170546,4.04887163,2105.3,2104.0,0.0011]
[1772723170746,6.27568332,2105.7,2104.0,3.14698338]
[1772723171045,1.18725383,2105.7,2104.2,3.14588338]
[1772723171441,2.86139242,2105.7,2104.3,1.18804352]
[1772723172359,2.86139242,2105.5,2104.1,1.18815645]
[1772723172652,2.86139242,2105.3,2104.1,1.18815645]
[1772723172827,1.282,2105.2,2104.1,1.18815645]
[1772723173032,1.282,2105.2,2104.2,0.0011]
[1772723173218,0.001,2105.1,2104.2,0.0011]
[1772723174351,1.18734521,2105.6,2104.4,3.14588338]
[1772723174650,4.74871634,2105.9,2104.4,3.14588338]
[1772723174873,3.41405109,2106.1,2104.4,3.14588338]
[1772723175027,2.86139242,2106.0,2104.5,3.14588338]
[1772723175329,2.86139242,2106.0,2104.6,3.14588338]
[1772723175531,2.86139242,2106.0,2104.7,1.18781774]
[1772723175532,1.18714088,2105.9,2104.7,1.18781774]
[1772723175948,4.0485333,2105.9,2104.7,1.18781774]
[1772723176248,4.0485333,2105.9,2104.4,1.18798707]
[1772723176249,2.86139242,2105.8,2104.4,1.18798707]
[1772723176451,2.86139242,2105.8,2104.2,0.0011]
[1772723176452,2.86139242,2105.7,2104.2,0.0011]
[1772723176752,2.86139242,2105.7,2104.2,1.1891983]
[1772723176753,2.86139242,2105.4,2104.2,1.1891983]
[1772723177830,1.18747921,2105.3,2104.2,0.0011]
[1772723178032,4.04887163,2105.3,2104.2,0.0011]
[1772723178548,2.86139242,2105.2,2104.2,0.0011]
[1772723179145,1.18747921,2105.3,2104.2,0.0011]
[1772723179853,4.74946619,2105.5,2104.2,0.0011]
[1772723179854,1.18736642,2105.5,2104.2,0.0011]
[1772723180031,1.18736642,2105.5,2104.2,3.00714499]
[1772723180647,4.16817021,2105.5,2104.3,1.096]
[1772723181961,4.16817021,2105.5,2104.2,1.18919999]
[1772723181962,4.168283,2105.3,2104.2,1.18919999]
[1772723182356,2.22701584,2105.1,2103.8,1.18832588]
[1772723182533,2.98080379,2104.9,2103.7,1.18943759]
[1772723182858,2.98080379,2104.9,2103.7,0.0011]
[1772723183057,2.98080379,2104.8,2103.7,0.0011]
[1772723183439,2.98080379,2104.8,2103.7,1.18947794]
[1772723183839,1.18781774,2104.7,2103.7,0.0011]
[1772723184555,1.1877979,2104.8,2103.7,0.0011]
[1772723185276,2.98080379,2104.7,2103.7,0.0011]
[1772723185831,4.16867797,2104.6,2103.7,0.0011]
[1772723186255,4.16867797,2104.6,2103.9,0.0011]
[1772723186626,1.18787418,2104.6,2103.9,0.0011]
[1772723186830,3.01877184,2104.5,2103.9,0.0011]
[1772723187059,1.18787418,2104.6,2103.9,0.0011]
[1772723187260,3.01877184,2104.5,2103.9,0.0011]
[1772723188058,4.20675891,2104.4,2103.9,0.0011]
[1772723188962,4.75194829,2104.6,2103.9,0.0011]
[1772723188963,6.52778768,2104.8,2103.9,0.0011]
[1772723189149,1.18781774,2104.7,2103.9,0.0011]
[1772723189959,4.75094703,2104.9,2103.9,0.0011]
[1772723190365,3.01877184,2104.8,2103.9,0.0011]
[1772723190552,4.29977184,2104.7,2103.9,0.0011]
[1772723191366,1.281,2104.7,2103.9,0.0011]
[1772723191869,1.18787418,2104.6,2103.9,0.0011]
[1772723192366,4.20664602,2104.6,2103.9,0.0011]
[1772723192942,3.01877184,2104.5,2103.9,0.0011]
[1772723193843,3.01877184,2104.5,2103.4,0.0011]
[1772723194043,3.01877184,2104.5,2102.3,4.75655834]
[1772723194044,3.01877184,2104.2,2102.3,4.75655834]
[1772723194246,3.01877184,2104.0,2102.3,4.75655834]
[1772723194549,3.01877184,2104.0,2102.4,4.01390525]
[1772723194747,3.01877184,2104.0,2102.5,2.92290525]
[1772723195671,3.01877184,2103.6,2102.0,1.18934348]
[1772723195874,3.01877184,2103.4,2102.0,1.18934348]
[1772723196167,1.18846491,2103.6,2102.3,2.92290525]
[1772723196543,4.20723675,2103.6,2102.3,2.92290525]
[1772723197180,3.01877184,2103.6,2102.3,2.92290525]
[1772723197483,3.01877184,2104.8,2102.7,2.92290525]
[1772723197678,3.01877184,2104.8,2102.9,2.92290525]
[1772723197679,1.18781774,2104.7,2102.9,2.92290525]
[1772723197986,4.20658958,2104.7,2103.2,1.18866489]
[1772723198466,3.01877184,2104.6,2103.2,1.18866489]
[1772723198858,3.01877184,2104.4,2102.8,1.188891]
[1772723199059,3.01877184,2104.2,2102.8,1.188891]
[1772723199645,3.00926727,2104.2,2102.8,1.188891]
[1772723199956,1.282,2104.3,2102.7,5.84468637]
[1772723199957,1.1882694,2103.9,2102.7,1.18892728]
[1772723200359,0.001,2104.4,2102.8,2.92290525]
[1772723200566,1.18902705,2104.4,2102.8,2.92290525]
[1772723200758,0.001,2104.4,2102.8,2.92290525]
[1772723200982,1.18899198,2104.4,2103.0,2.92290525]
[1772723201360,4.20776382,2104.4,2103.0,2.92290525]
[1772723201562,4.20776382,2104.4,2103.1,1.088]
[1772723202176,4.20776382,2104.4,2103.1,4.75465956]
[1772723202344,4.20776382,2104.4,2103.0,1.18873333]
[1772723202345,3.01877184,2104.3,2103.0,1.18873333]
[1772723202786,2.46999198,2104.4,2102.7,4.75568543]
[1772723202787,3.01877184,2104.1,2102.7,1.18894754]
[1772723203695,3.01877184,2104.1,2102.2,10.17265465]
[1772723203696,3.01877184,2103.9,2102.4,1.18911719]
[1772723203851,3.01877184,2103.9,2102.4,4.11202244]
[1772723204361,1.18832588,2103.8,2102.4,4.11202244]
[1772723204572,1.18832588,2103.8,2102.5,1.087]
[1772723204949,3.01877184,2103.7,2102.4,4.11202244]
[1772723205180,3.01877184,2103.7,2102.5,1.087]
[1772723205491,3.01877184,2103.7,2102.4,1.18911719]
[1772723205691,3.01877184,2103.6,2102.2,0.0011]
[1772723205896,5.81278525,2103.5,2102.2,1.19032972]
[1772723206190,1.281,2103.7,2102.2,1.19032972]
[1772723206191,3.01877184,2103.4,2102.2,1.19032972]
[1772723206350,1.18860837,2103.3,2102.2,0.0011]
[1772723206551,3.01877184,2103.2,2102.2,0.0011]
[1772723206751,1.18860837,2103.3,2102.2,0.0011]
[1772723207891,3.01877184,2103.6,2102.2,2.92400525]
[1772723208059,3.01877184,2104.0,2102.3,4.00890525]
[1772723208263,3.01877184,2103.9,2102.3,4.00890525]
[1772723208463,1.18832588,2103.8,2102.4,2.27511719]
[1772723208668,1.18832588,2103.8,2102.5,1.086]
[1772723208876,1.18832588,2103.8,2102.4,1.18911719]
[1772723208877,3.1601963,2103.7,2102.4,1.18911719]
[1772723209281,1.18832588,2103.8,2102.5,1.086]
[1772723209651,1.18832588,2103.8,2102.4,4.34902055]
[1772723209980,4.75285258,2104.0,2102.4,4.34902055]
[1772723209981,4.75292142,2104.0,2102.6,3.15990336]
[1772723210383,6.03262375,2104.3,2102.6,3.15990336]
[1772723210384,1.28,2104.3,2102.6,3.15990336]
[1772723210561,1.18807193,2104.3,2102.8,3.15990336]
[1772723210980,3.1601963,2104.1,2102.8,1.085]
[1772723211267,6.9401963,2104.1,2102.8,1.085]
[1772723211480,6.9401963,2104.1,2102.7,1.18894754]
[1772723211786,3.1611963,2104.0,2102.8,1.085]
[1772723211989,3.1611963,2104.0,2102.7,1.18894754]
[1772723212367,3.1601963,2103.8,2102.7,1.18894754]
[1772723212581,1.18838237,2103.7,2102.4,1.19021719]
[1772723213596,1.18838237,2103.7,2102.5,1.085]
[1772723214002,1.18838237,2103.7,2102.4,1.19021719]
[1772723214003,4.34857867,2103.7,2102.6,1.085]
[1772723214514,4.34857867,2103.7,2102.5,1.085]
[1772723214964,3.1601963,2103.5,2102.4,0.0011]
[1772723215289,1.18838237,2103.7,2102.4,0.0011]
[1772723215290,3.1601963,2103.3,2102.4,0.0011]
[1772723215677,3.1601963,2103.3,2102.2,1.19030431]
[1772723215878,3.41539821,2103.7,2102.2,0.0011]
[1772723215879,3.1601963,2103.1,2102.2,0.0011]
[1772723216086,3.1601963,2102.9,2102.2,0.0011]
[1772723217060,3.1601963,2102.9,2102.1,0.0011]
[1772723217061,3.1601963,2102.7,2102.1,0.0011]
[1772723217983,4.75518901,2103.0,2102.1,0.0011]
[1772723218194,1.18877793,2103.0,2102.1,0.0011]
[1772723218571,5.62793927,2103.1,2102.1,0.0011]
[1772723218972,4.75420781,2103.4,2102.3,1.18917376]
[1772723219615,3.1601963,2103.3,2102.3,1.18917376]
[1772723219917,3.1601963,2103.3,2102.2,5.84069504]
[1772723219918,3.1601963,2103.3,2102.2,1.18919679]
[1772723220910,2.22701584,2103.7,2102.3,3.15990336]
[1772723220911,1.18838237,2103.7,2102.3,3.15990336]
[1772723221209,3.1601963,2103.6,2102.4,1.18911719]
[1772723221409,3.1601963,2103.6,2102.3,4.75646879]
[1772723221410,3.1601963,2103.4,2102.3,1.18913405]
[1772723221912,8.25951475,2103.8,2102.4,3.15990336]
[1772723221913,4.34856058,2103.8,2102.4,3.15990336]
[1772723222075,3.1601963,2103.7,2102.4,3.15990336]
[1772723222277,3.1601963,2103.5,2102.3,2.27313405]
[1772723222500,3.1601963,2103.3,2102.3,2.27313405]
[1772723222894,3.1601963,2103.6,2102.3,2.27313405]
[1772723223223,1.18849536,2103.5,2102.3,2.27313405]
[1772723223379,1.18845652,2103.6,2102.4,3.15990336]
[1772723223575,1.18834518,2103.8,2102.4,3.15990336]
[1772723223784,0.001,2104.0,2102.6,3.15990336]
[1772723224197,0.001,2104.0,2102.8,3.15990336]
[1772723224398,1.18924895,2104.0,2102.9,1.084]
[1772723224577,0.001,2104.0,2103.0,3.15990336]
[1772723224780,0.001,2104.4,2103.0,3.15990336]
[1772723224781,1.18898814,2104.4,2103.0,3.15990336]
[1772723225002,4.34918444,2104.4,2103.0,3.15990336]
[1772723225202,4.34918444,2104.4,2103.1,5.43262477]
[1772723225409,1.18898814,2104.4,2103.1,5.43262477]
[1772723225712,1.18898734,2104.4,2103.2,3.15990336]
[1772723225912,1.18900098,2104.4,2103.2,3.15990336]
[1772723226118,1.18900098,2104.4,2102.6,7.91570916]
[1772723226119,3.1601963,2104.2,2102.6,7.91570916]
[1772723226295,3.1601963,2104.2,2102.5,1.18906064]
[1772723226496,3.1601963,2104.0,2102.6,1.084]
[1772723226796,3.67480134,2104.4,2102.8,3.15990336]
[1772723226797,4.34920826,2104.4,2102.8,3.15990336]
[1772723227020,1.18901196,2104.4,2102.8,3.15990336]
[1772723227186,0.001,2104.4,2103.0,3.15990336]
[1772723227383,0.001,2104.4,2103.2,3.15990336]
[1772723228126,0.001,2104.4,2103.3,1.083]
[1772723228712,0.001,2104.4,2103.2,3.15990336]
[1772723228917,3.1611963,2104.4,2103.2,1.083]
[1772723229117,3.1601963,2104.2,2103.0,1.083]
[1772723230013,1.18804352,2104.3,2102.9,1.18883446]
[1772723230014,3.1601963,2104.0,2102.9,1.18883446]
[1772723230414,3.1601963,2104.0,2102.4,4.350064]
[1772723230615,3.1601963,2103.8,2102.4,0.0011]
[1772723230802,3.1601963,2103.6,2102.4,1.19020422]
[1772723231130,1.18855186,2103.4,2102.4,0.0011]
[1772723231682,4.75384985,2103.6,2102.4,0.0011]
[1772723231683,1.18832588,2103.8,2102.4,0.0011]
[1772723231887,1.18832588,2103.8,2102.4,3.16100336]
[1772723232322,1.18832588,2103.8,2102.5,4.24290336]
[1772723232523,1.18832588,2103.8,2102.6,3.15990336]
[1772723233134,7.91349984,2103.9,2102.8,1.188891]
[1772723234197,1.1882694,2103.9,2102.8,1.188891]
[1772723234431,4.75291309,2104.0,2102.8,4.34879436]
[1772723234432,1.18825773,2104.0,2102.8,4.34879436]
[1772723234731,1.18807918,2104.3,2102.9,3.15990336]
[1772723235090,0.001,2104.4,2103.0,2.27177793]
[1772723235318,2.79935108,2104.4,2103.0,2.27177793]
[1772723235490,0.001,2104.4,2103.0,2.27177793]
[1772723235696,0.001,2104.4,2103.0,1.18877793]
[1772723235994,0.001,2104.4,2103.1,1.083]
[1772723236197,3.1611963,2104.4,2103.2,1.082]
[1772723236410,3.1611963,2104.4,2103.0,1.18877793]
[1772723236708,3.1611963,2104.4,2103.1,1.082]
[1772723236903,0.001,2103.8,2103.2,1.082]
[1772723237101,0.001,2103.8,2102.5,4.34890745]
[1772723237305,3.1611963,2103.8,2102.7,1.082]
[1772723237905,0.001,2104.4,2102.9,0.065536]
[1772723238120,0.001,2104.4,2103.0,3.15990336]
[1772723238121,1.18899147,2104.4,2103.0,3.15990336]
[1772723238936,1.18899147,2104.4,2103.1,3.95870399]
[1772723239238,0.001,2104.4,2103.2,2.27066489]
[1772723239533,0.001,2104.4,2103.2,5.14736888]
[1772723240443,0.001,2104.4,2103.3,2.87670399]
[1772723241113,0.001,2104.4,2103.4,1.18855186]
[1772723241509,0.001,2104.4,2103.4,4.06525585]
[1772723241744,0.001,2104.4,2103.5,2.87670399]
[1772723242443,1.1876716,2105.0,2103.5,2.87670399]
[1772723242912,2.92673555,2104.9,2103.6,1.082]
[1772723243112,1.1876716,2105.0,2103.6,1.082]
[1772723243113,0.001,2105.2,2103.8,1.18832588]
[1772723243315,1.18857031,2105.2,2103.9,2.87670399]
[1772723243642,1.18857031,2105.2,2103.8,1.18832588]
[1772723243643,2.92673555,2105.1,2103.8,1.18832588]
[1772723243838,2.92673555,2105.1,2103.9,1.082]
[1772723244615,0.001,2105.2,2104.0,2.87670399]
[1772723244816,0.001,2105.2,2104.2,2.87670399]
[1772723245245,4.74880489,2105.8,2104.2,2.87670399]
[1772723245246,2.92673555,2106.0,2104.4,2.87670399]
[1772723245448,4.74754781,2106.4,2104.3,1.18804352]
[1772723245449,2.92673555,2106.4,2104.6,2.87670399]
[1772723246023,4.74698566,2106.7,2104.7,2.94223999]
[1772723246349,2.92673555,2106.6,2104.7,2.94223999]
[1772723246533,2.92673555,2106.6,2104.8,1.082]
[1772723246848,2.92673555,2106.6,2104.8,3.94474232]
[1772723247010,2.92673555,2106.6,2104.9,2.86274232]
[1772723247216,1.18680275,2106.5,2105.0,1.18764845]
[1772723247440,4.00965942,2106.5,2105.0,1.18764845]
[1772723247825,4.00965942,2106.5,2105.1,2.86274232]
[1772723248027,1.18680275,2106.5,2105.2,1.082]
[1772723248419,2.82285667,2106.4,2105.0,1.18764845]
[1772723248650,2.82285667,2106.4,2105.1,1.082]
[1772723248854,2.82285667,2106.4,2105.0,1.18764845]
[1772723249036,2.82285667,2106.4,2105.1,1.082]
[1772723249229,1.18691544,2106.3,2105.2,1.18753562]
[1772723249629,1.18689646,2106.4,2105.2,4.05027794]
[1772723250542,0.001,2106.8,2105.3,2.86274232]
[1772723250739,1.18765758,2106.8,2105.3,2.86274232]
[1772723251241,1.18765758,2106.8,2105.4,2.26842281]
[1772723251242,1.18674641,2106.6,2105.4,2.26842281]
[1772723251621,7.56984233,2106.7,2105.4,1.18742281]
[1772723251622,4.00957927,2106.7,2105.4,1.18742281]
[1772723251841,4.00957927,2106.7,2105.5,1.081]
[1772723252324,4.00957927,2106.7,2105.4,1.081]
[1772723252325,2.82285667,2106.6,2105.4,1.081]
[1772723252838,1.18669508,2106.7,2105.4,3.94374232]
[1772723253045,4.00955175,2106.7,2105.5,1.081]
[1772723253346,4.00955175,2106.7,2105.6,1.18731003]
[1772723253547,1.18669508,2106.7,2105.6,1.18731003]
[1772723253749,1.18767415,2106.8,2105.6,4.05005235]
[1772723253951,1.18767415,2106.8,2105.7,2.86274232]
[1772723254151,0.001,2106.8,2105.7,2.86274232]
[1772723254331,1.18764477,2106.8,2105.7,2.86274232]
[1772723254659,0.001,2106.8,2105.7,2.86274232]
[1772723254970,0.001,2106.8,2105.8,1.081]
[1772723255138,1.18646201,2107.2,2106.1,2.86274232]
[1772723255449,2.82285667,2107.6,2106.1,2.86274232]
[1772723255450,1.18623962,2107.5,2106.2,4.04971411]
[1772723255644,1.18623962,2107.5,2106.3,1.081]
[1772723255954,1.18623962,2107.5,2106.2,4.04971411]
[1772723255955,2.82285667,2107.4,2106.2,2.26797179]
[1772723256669,2.82285667,2107.4,2105.9,1.18714088]
[1772723256881,2.82285667,2107.3,2105.9,1.081]
[1772723257363,2.82285667,2107.1,2105.5,4.74943661]
[1772723257725,2.82285667,2107.1,2105.3,1.18747921]
[1772723257959,2.82285667,2107.0,2105.3,2.26847921]
[1772723258728,2.82285667,2107.0,2105.3,1.18747921]
[1772723259334,2.82285667,2106.6,2105.1,1.18759203]
[1772723259738,2.82285667,2106.4,2104.7,1.18781774]
[1772723259940,2.82285667,2106.4,2104.3,1.18804352]
[1772723260253,2.82285667,2106.4,2103.8,1.1882694]
[1772723260254,2.82285667,2105.8,2103.8,1.1882694]
[1772723260453,2.72803241,2105.9,2103.9,5.83402454]
[1772723260454,2.82285667,2105.6,2103.9,5.83402454]
[1772723261024,2.82285667,2105.6,2103.7,4.7535215]
[1772723261025,2.82285667,2105.5,2103.7,1.081]
[1772723261230,2.82285667,2105.5,2103.6,1.081]
[1772723261453,2.82285667,2105.5,2103.6,1.18841301]
[1772723261454,2.82285667,2105.2,2103.6,1.18841301]
[1772723262154,2.82285667,2105.2,2104.6,0.0011]
[1772723262727,2.82285667,2105.2,2104.4,0.0011]
[1772723263023,2.82285667,2105.2,2103.6,1.18841301]
[1772723263455,2.82285667,2105.2,2103.4,4.75485546]
[1772723263456,2.82285667,2105.0,2103.4,1.0821]
[1772723264057,2.82285667,2105.0,2103.4,0.0011]
[1772723264679,2.82285667,2105.0,2103.4,2.86384232]
[1772723265381,1.18770487,2104.9,2103.6,2.86274232]
[1772723265855,4.0105341,2105.0,2103.6,2.86274232]
[1772723266055,4.0105341,2105.0,2103.7,1.081]
[1772723266389,4.74991921,2105.3,2103.8,2.86274232]
[1772723266390,1.18748061,2105.3,2103.8,2.86274232]
[1772723266601,2.82285667,2105.2,2103.5,1.18849536]
[1772723266755,2.82285667,2105.1,2103.5,1.18849536]
[1772723267463,2.82285667,2104.9,2103.4,0.0011]
[1772723267873,2.82285667,2104.8,2103.4,0.0011]
[1772723268195,2.82285667,2104.4,2103.1,0.0011]
[1772723268487,2.82285667,2104.4,2102.9,0.0011]
[1772723268489,3.03787766,2104.0,2102.9,0.0011]
[1772723268652,2.82285667,2103.8,2102.9,0.0011]
[1772723268853,2.82285667,2103.8,2102.6,0.0011]
[1772723268854,2.86632028,2103.6,2102.6,0.0011]
[1772723269058,2.86632028,2103.4,2102.1,0.0011]
[1772723269284,2.72803241,2103.2,2102.1,0.0011]
[1772723269484,2.86632028,2102.8,2102.1,0.0011]
[1772723271290,2.86632028,2102.8,2101.9,0.1672934]
[1772723271598,2.86632028,2102.8,2100.9,1.1899662]
[1772723271599,2.86632028,2102.6,2100.9,1.1899662]
[1772723271772,2.47919063,2101.7,2098.7,1.422]
[1772723271969,2.47919063,2101.7,2098.8,2.88875867]
[1772723271970,2.86632028,2100.9,2098.8,2.88875867]
[1772723272567,2.86632028,2100.7,2098.8,2.88875867]
[1772723272879,2.86632028,2100.7,2098.6,1.97737681]
[1772723273081,2.86632028,2100.4,2098.2,2.88875867]
[1772723273594,2.86632028,2100.4,2097.5,6.18867143]
[1772723273595,2.86632028,2099.8,2097.9,4.76644423]
[1772723273756,2.86632028,2099.6,2097.9,4.76644423]
[1772723273961,2.86632028,2099.6,2097.6,4.93400024]
[1772723273962,2.86632028,2099.4,2097.6,1.35911482]
[1772723274214,2.86632028,2099.1,2097.6,1.35911199]
[1772723274499,0.14948499,2099.6,2097.6,0.1672934]
[1772723274500,2.86632028,2098.8,2097.6,0.1672934]
[1772723274790,2.86632028,2098.6,2097.6,0.1672934]
[1772723274967,2.86632028,2098.6,2097.6,1.35911473]
[1772723275159,2.86632028,2099.1,2097.6,1.35911473]
[1772723275679,2.86632028,2099.1,2097.6,0.1672934]
[1772723275680,2.86632028,2098.9,2097.6,0.1672934]
[1772723275860,2.86632028,2098.7,2097.6,0.1672934]
[1772723276263,2.86632028,2098.5,2097.1,1.19208719]
[1772723276469,2.86632028,2098.5,2095.3,1.43173437]
[1772723276470,2.47919063,2097.7,2095.3,1.43173437]
[1772723276765,2.47919063,2097.7,2095.7,2.88875867]
[1772723276766,2.86632028,2097.6,2095.7,2.88875867]
[1772723276965,2.86632028,2097.6,2095.6,4.77175095]
[1772723276966,2.69807096,2098.3,2096.2,2.95429467]
[1772723277181,2.72803241,2098.9,2096.2,2.95429467]
[1772723277182,1.18718436,2098.5,2096.4,2.95429467]
[1772723277378,2.86632028,2098.4,2096.4,3.92975867]